[Event "Titled Tuesday Blitz April 26 Late 2022"]
[White "Ward, Ieuan C"]
[Black "Hardaway, Brewington"]
[WhiteFideId "406627"]
[BlackFideId "30941849"]
[WhiteElo "2320"]
[BlackElo "1768"]
[Result "0-1"]
[Round "06"]
[TimeControl "180+1"]
[Date "2022.04.26"]
[WhiteClock "0:00:20"]
[BlackClock "0:01:24"]

1. e4 {[%clk 0:03:00]}  c5 {[%clk 0:02:58]} 2. Nf3 {[%clk 0:03:00]}  e6 {[%clk 0:02:58]} 3. d4 {[%clk 0:03:00]}  cxd4 {[%clk 0:02:57]} 4. c3 {[%clk 0:03:00]}  dxc3 {[%clk 0:02:55]} 5. Nxc3 {[%clk 0:03:00]}  a6 {[%clk 0:02:55]} 6. Bc4 {[%clk 0:03:01]}  Qc7 {[%clk 0:02:55]} 7. Qe2 {[%clk 0:03:00]}  Nc6 {[%clk 0:02:54]} 8. O-O {[%clk 0:02:42]}  Nf6 {[%clk 0:02:53]} 9. e5 {[%clk 0:02:42]}  Ng4 {[%clk 0:02:52]} 10. Bf4 {[%clk 0:02:40]}  Nh6 {[%clk 0:02:26]} 11. Ne4 {[%clk 0:02:05]}  Nf5 {[%clk 0:02:23]} 12. Rac1 {[%clk 0:02:03]}  b5 {[%clk 0:02:14]} 13. Bd3 {[%clk 0:01:52]}  Qb6 {[%clk 0:02:10]} 14. Nfg5 {[%clk 0:01:17]}  h6 {[%clk 0:02:06]} 15. Nxf7 {[%clk 0:01:04]}  Kxf7 {[%clk 0:02:03]} 16. Nd6+ {[%clk 0:00:48]}  Bxd6 {[%clk 0:02:02]} 17. exd6 {[%clk 0:00:43]}  Bb7 {[%clk 0:01:51]} 18. g4 {[%clk 0:00:34]}  Ncd4 {[%clk 0:01:49]} 19. Qd1 {[%clk 0:00:23]}  Nf3+ {[%clk 0:01:38]} 20. Kg2 {[%clk 0:00:23]}  N5h4+ {[%clk 0:01:32]} 21. Kg3 {[%clk 0:00:20]}  g5 {[%clk 0:01:25]} 22. Be5 {[%clk 0:00:20]}  Nxe5 {[%clk 0:01:24]} 0-1


[Site "https://www.chess.com"]

[Event "Titled Tuesday Blitz April 26 Late 2022"]
[White "Wieczorek, Oskar"]
[Black "Hirneise, Jens"]
[WhiteFideId "1133950"]
[BlackFideId "24614734"]
[WhiteElo "2319"]
[BlackElo "2359"]
[Result "1-0"]
[Round "06"]
[TimeControl "180+1"]
[Date "2022.04.26"]
[WhiteClock "0:00:16"]
[BlackClock "0:00:02"]

1. e4 {[%clk 0:03:00]}  e5 {[%clk 0:02:51]} 2. Nf3 {[%clk 0:03:00]}  Nf6 {[%clk 0:02:50]} 3. Nc3 {[%clk 0:03:01]}  Nc6 {[%clk 0:02:47]} 4. a3 {[%clk 0:03:00]}  Be7 {[%clk 0:02:34]} 5. d4 {[%clk 0:02:58]}  exd4 {[%clk 0:02:34]} 6. Nxd4 {[%clk 0:02:59]}  O-O {[%clk 0:02:34]} 7. Nxc6 {[%clk 0:02:56]}  bxc6 {[%clk 0:02:30]} 8. e5 {[%clk 0:02:56]}  Ne8 {[%clk 0:02:29]} 9. Bd3 {[%clk 0:02:57]}  d5 {[%clk 0:02:27]} 10. Qh5 {[%clk 0:02:41]}  g6 {[%clk 0:02:16]} 11. Qh6 {[%clk 0:02:42]}  Ng7 {[%clk 0:02:07]} 12. O-O {[%clk 0:02:23]}  Bf5 {[%clk 0:01:56]} 13. Ne2 {[%clk 0:02:17]}  Bxd3 {[%clk 0:01:55]} 14. cxd3 {[%clk 0:02:18]}  Nf5 {[%clk 0:01:55]} 15. Qh3 {[%clk 0:02:15]}  Rb8 {[%clk 0:01:50]} 16. g4 {[%clk 0:01:48]}  Nh4 {[%clk 0:01:36]} 17. f4 {[%clk 0:01:38]}  c5 {[%clk 0:01:23]} 18. f5 {[%clk 0:01:33]}  Bg5 {[%clk 0:01:23]} 19. f6 {[%clk 0:01:24]}  h6 {[%clk 0:01:10]} 20. Bxg5 {[%clk 0:01:17]}  hxg5 {[%clk 0:01:11]} 21. Qe3 {[%clk 0:01:10]}  Re8 {[%clk 0:00:28]} 22. Qxg5 {[%clk 0:01:05]}  Qd7 {[%clk 0:00:27]} 23. Qh6 {[%clk 0:00:33]}  Qxg4+ {[%clk 0:00:25]} 24. Ng3 {[%clk 0:00:33]}  Nf5 {[%clk 0:00:17]} 25. Rxf5 {[%clk 0:00:33]}  gxf5 {[%clk 0:00:16]} 26. Rf1 {[%clk 0:00:33]}  Qg6 {[%clk 0:00:13]} 27. Qf4 {[%clk 0:00:28]}  Rxb2 {[%clk 0:00:11]} 28. Kh1 {[%clk 0:00:28]}  Qh7 {[%clk 0:00:07]} 29. Nxf5 {[%clk 0:00:25]}  Kh8 {[%clk 0:00:06]} 30. Rg1 {[%clk 0:00:17]}  Rg8 {[%clk 0:00:03]} 31. Ng7 {[%clk 0:00:17]}  Qh3 {[%clk 0:00:02]} 32. e6 {[%clk 0:00:17]}  fxe6 {[%clk 0:00:02]} 33. f7 {[%clk 0:00:17]}  Rf8 {[%clk 0:00:02]} 34. Nxe6 {[%clk 0:00:16]}  Qxe6 {[%clk 0:00:02]} 35. Qh4+ {[%clk 0:00:15]}  Qh6 {[%clk 0:00:02]} 36. Qxh6# {[%clk 0:00:16]} 1-0


[Site "https://www.chess.com"]

[Event "Titled Tuesday Blitz April 26 Late 2022"]
[White "Xu, Yi"]
[Black "Bortnyk, Olexandr"]
[WhiteFideId "8605564"]
[BlackFideId "14120828"]
[WhiteElo "2471"]
[BlackElo "2723"]
[Result "0-1"]
[Round "06"]
[TimeControl "180+1"]
[Date "2022.04.26"]
[WhiteClock "0:00:04"]
[BlackClock "0:00:04"]

1. e4 {[%clk 0:03:00]}  d6 {[%clk 0:02:53]} 2. d4 {[%clk 0:03:00]}  Nf6 {[%clk 0:02:53]} 3. Nc3 {[%clk 0:03:00]}  Nbd7 {[%clk 0:02:54]} 4. f4 {[%clk 0:02:56]}  e5 {[%clk 0:02:54]} 5. Nf3 {[%clk 0:02:50]}  exd4 {[%clk 0:02:54]} 6. Qxd4 {[%clk 0:02:44]}  c6 {[%clk 0:02:54]} 7. Be3 {[%clk 0:02:42]}  d5 {[%clk 0:02:54]} 8. e5 {[%clk 0:02:33]}  Bc5 {[%clk 0:02:55]} 9. Qd2 {[%clk 0:02:33]}  Bxe3 {[%clk 0:02:55]} 10. Qxe3 {[%clk 0:02:33]}  Ng4 {[%clk 0:02:56]} 11. Qd2 {[%clk 0:02:30]}  Qb6 {[%clk 0:02:57]} 12. O-O-O {[%clk 0:02:08]}  a5 {[%clk 0:02:46]} 13. Re1 {[%clk 0:02:01]}  a4 {[%clk 0:02:37]} 14. a3 {[%clk 0:01:58]}  Nc5 {[%clk 0:02:31]} 15. Nd4 {[%clk 0:01:51]}  Nh6 {[%clk 0:02:16]} 16. h3 {[%clk 0:01:41]}  Nf5 {[%clk 0:02:13]} 17. Nxf5 {[%clk 0:01:41]}  Bxf5 {[%clk 0:02:14]} 18. g4 {[%clk 0:01:38]}  Be4 {[%clk 0:02:13]} 19. Rh2 {[%clk 0:01:34]}  O-O {[%clk 0:02:04]} 20. Bg2 {[%clk 0:01:17]}  Bxg2 {[%clk 0:01:34]} 21. Rxg2 {[%clk 0:01:17]}  Rad8 {[%clk 0:01:34]} 22. f5 {[%clk 0:01:12]}  Rfe8 {[%clk 0:01:29]} 23. Qf4 {[%clk 0:00:45]}  d4 {[%clk 0:01:25]} 24. Ne4 {[%clk 0:00:45]}  Qa5 {[%clk 0:01:25]} 25. Rd1 {[%clk 0:00:42]}  Nxe4 {[%clk 0:01:24]} 26. Qxe4 {[%clk 0:00:42]}  Rxe5 {[%clk 0:01:22]} 27. Qf4 {[%clk 0:00:41]}  Qd5 {[%clk 0:01:17]} 28. Rgd2 {[%clk 0:00:35]}  c5 {[%clk 0:01:17]} 29. Kb1 {[%clk 0:00:34]}  Qe4 {[%clk 0:01:09]} 30. Qf1 {[%clk 0:00:29]}  h6 {[%clk 0:01:05]} 31. f6 {[%clk 0:00:29]}  g5 {[%clk 0:01:02]} 32. Qc4 {[%clk 0:00:28]}  Qc6 {[%clk 0:01:01]} 33. c3 {[%clk 0:00:25]}  b5 {[%clk 0:00:55]} 34. Qf1 {[%clk 0:00:25]}  Re6 {[%clk 0:00:48]} 35. cxd4 {[%clk 0:00:24]}  Rxf6 {[%clk 0:00:48]} 36. Qe2 {[%clk 0:00:22]}  c4 {[%clk 0:00:41]} 37. d5 {[%clk 0:00:20]}  Qd6 {[%clk 0:00:41]} 38. Qe3 {[%clk 0:00:20]}  Rf4 {[%clk 0:00:36]} 39. Qc3 {[%clk 0:00:18]}  Qf6 {[%clk 0:00:34]} 40. Qxf6 {[%clk 0:00:11]}  Rxf6 {[%clk 0:00:35]} 41. d6 {[%clk 0:00:12]}  Rf3 {[%clk 0:00:34]} 42. Rd5 {[%clk 0:00:11]}  Rxh3 {[%clk 0:00:30]} 43. Rxb5 {[%clk 0:00:10]}  Rb3 {[%clk 0:00:30]} 44. Rc5 {[%clk 0:00:09]}  Rd3 {[%clk 0:00:16]} 45. Rxd3 {[%clk 0:00:08]}  cxd3 {[%clk 0:00:17]} 46. Rd5 {[%clk 0:00:08]}  f5 {[%clk 0:00:17]} 47. gxf5 {[%clk 0:00:05]}  Kf7 {[%clk 0:00:17]} 48. Rxd3 {[%clk 0:00:05]}  Kf6 {[%clk 0:00:16]} 49. Rd4 {[%clk 0:00:04]}  h5 {[%clk 0:00:16]} 50. Kc2 {[%clk 0:00:04]}  h4 {[%clk 0:00:16]} 51. Kd2 {[%clk 0:00:04]}  h3 {[%clk 0:00:09]} 52. Ke3 {[%clk 0:00:03]}  Kxf5 {[%clk 0:00:03]} 53. Kf3 {[%clk 0:00:03]}  Ke5 {[%clk 0:00:02]} 54. Rd1 {[%clk 0:00:03]}  Rxd6 {[%clk 0:00:02]} 55. Re1+ {[%clk 0:00:03]}  Kf5 {[%clk 0:00:02]} 56. Kg3 {[%clk 0:00:03]}  Rd3+ {[%clk 0:00:03]} 57. Kh2 {[%clk 0:00:03]}  g4 {[%clk 0:00:03]} 58. Re8 {[%clk 0:00:03]}  Rd2+ {[%clk 0:00:03]} 59. Kg3 {[%clk 0:00:03]}  Rg2+ {[%clk 0:00:03]} 60. Kh4 {[%clk 0:00:03]}  h2 {[%clk 0:00:04]} 61. Rf8+ {[%clk 0:00:03]}  Kg6 {[%clk 0:00:04]} 62. Rf1 {[%clk 0:00:04]}  Rg1 {[%clk 0:00:04]} 0-1


[Site "https://www.chess.com"]

[Event "Titled Tuesday Blitz April 26 Late 2022"]
[White "Yanayt, Eugene"]
[Black "Licznerski, Lukasz"]
[WhiteFideId "2020165"]
[BlackFideId "1179250"]
[WhiteElo "2046"]
[BlackElo "2422"]
[Result "0-1"]
[Round "06"]
[TimeControl "180+1"]
[Date "2022.04.26"]
[WhiteClock "0:00:11"]
[BlackClock "0:00:07"]

1. d4 {[%clk 0:03:00]}  Nf6 {[%clk 0:00:29]} 2. c4 {[%clk 0:02:58]}  g6 {[%clk 0:00:30]} 3. Nc3 {[%clk 0:02:58]}  d5 {[%clk 0:00:30]} 4. cxd5 {[%clk 0:02:52]}  Nxd5 {[%clk 0:00:31]} 5. Bd2 {[%clk 0:02:52]}  Nb6 {[%clk 0:00:31]} 6. Bf4 {[%clk 0:02:50]}  Bg7 {[%clk 0:00:31]} 7. Nf3 {[%clk 0:02:45]}  O-O {[%clk 0:00:30]} 8. e4 {[%clk 0:02:39]}  Bg4 {[%clk 0:00:29]} 9. Be3 {[%clk 0:02:37]}  Nc6 {[%clk 0:00:27]} 10. d5 {[%clk 0:02:35]}  Ne5 {[%clk 0:00:27]} 11. Be2 {[%clk 0:02:27]}  Bxf3 {[%clk 0:00:27]} 12. gxf3 {[%clk 0:02:27]}  c6 {[%clk 0:00:28]} 13. dxc6 {[%clk 0:02:21]}  Nxc6 {[%clk 0:00:27]} 14. Qb3 {[%clk 0:02:15]}  Nd4 {[%clk 0:00:26]} 15. Qd1 {[%clk 0:02:12]}  Rc8 {[%clk 0:00:23]} 16. Rc1 {[%clk 0:02:10]}  e6 {[%clk 0:00:20]} 17. f4 {[%clk 0:02:04]}  Qd7 {[%clk 0:00:16]} 18. O-O {[%clk 0:01:47]}  Rfd8 {[%clk 0:00:16]} 19. Bg4 {[%clk 0:01:45]}  h5 {[%clk 0:00:15]} 20. Bh3 {[%clk 0:01:40]}  Nc4 {[%clk 0:00:15]} 21. Re1 {[%clk 0:01:28]}  Nxb2 {[%clk 0:00:14]} 22. Bxd4 {[%clk 0:01:14]}  Nxd1 {[%clk 0:00:14]} 23. Bxg7 {[%clk 0:01:15]}  Nxf2 {[%clk 0:00:06]} 24. Kxf2 {[%clk 0:01:09]}  Kxg7 {[%clk 0:00:07]} 25. Rcd1 {[%clk 0:01:05]}  Qc7 {[%clk 0:00:06]} 26. Ne2 {[%clk 0:01:04]}  Qb6+ {[%clk 0:00:05]} 27. Kf1 {[%clk 0:01:02]}  Rc2 {[%clk 0:00:05]} 28. Rb1 {[%clk 0:00:25]}  Qe3 {[%clk 0:00:05]} 29. Rb3 {[%clk 0:00:25]}  Rd3 {[%clk 0:00:04]} 30. Rxd3 {[%clk 0:00:19]}  Qxd3 {[%clk 0:00:05]} 31. Bg2 {[%clk 0:00:19]}  Rxa2 {[%clk 0:00:05]} 32. Kf2 {[%clk 0:00:17]}  Qd4+ {[%clk 0:00:05]} 33. Kf3 {[%clk 0:00:17]}  Qd3+ {[%clk 0:00:06]} 34. Kf2 {[%clk 0:00:17]}  b5 {[%clk 0:00:06]} 35. Bf1 {[%clk 0:00:17]}  b4 {[%clk 0:00:06]} 36. Rc1 {[%clk 0:00:15]}  b3 {[%clk 0:00:06]} 37. Kg1 {[%clk 0:00:15]}  Rxe2 {[%clk 0:00:05]} 38. Bxe2 {[%clk 0:00:11]}  Qe3+ {[%clk 0:00:05]} 39. Kg2 {[%clk 0:00:11]}  Qxc1 {[%clk 0:00:06]} 40. Kf2 {[%clk 0:00:11]}  b2 {[%clk 0:00:07]} 41. Bd3 {[%clk 0:00:11]}  Qd2+ {[%clk 0:00:07]} 42. Be2 {[%clk 0:00:11]}  b1=Q {[%clk 0:00:07]} 0-1


[Site "https://www.chess.com"]

[Event "Titled Tuesday Blitz April 26 Late 2022"]
[White "Yoo, Christopher Woojin"]
[Black "Moskalenko, Alexander"]
[WhiteFideId "30909694"]
[BlackFideId "4155351"]
[WhiteElo "2105"]
[BlackElo "2434"]
[Result "0-1"]
[Round "06"]
[TimeControl "180+1"]
[Date "2022.04.26"]
[WhiteClock "0:00:04"]
[BlackClock "0:01:11"]

1. e4 {[%clk 0:03:00]}  c5 {[%clk 0:02:58]} 2. Nf3 {[%clk 0:03:01]}  e6 {[%clk 0:02:58]} 3. c3 {[%clk 0:03:00]}  Nf6 {[%clk 0:02:56]} 4. e5 {[%clk 0:03:00]}  Nd5 {[%clk 0:02:57]} 5. d4 {[%clk 0:03:01]}  cxd4 {[%clk 0:02:57]} 6. cxd4 {[%clk 0:03:01]}  Nc6 {[%clk 0:02:57]} 7. Bc4 {[%clk 0:03:02]}  d6 {[%clk 0:02:57]} 8. O-O {[%clk 0:03:02]}  Be7 {[%clk 0:02:57]} 9. Qe2 {[%clk 0:03:03]}  O-O {[%clk 0:02:52]} 10. Rd1 {[%clk 0:03:03]}  b6 {[%clk 0:02:53]} 11. Bd2 {[%clk 0:02:58]}  Bb7 {[%clk 0:02:22]} 12. Nc3 {[%clk 0:02:57]}  dxe5 {[%clk 0:02:15]} 13. dxe5 {[%clk 0:02:55]}  Nxc3 {[%clk 0:02:16]} 14. Bxc3 {[%clk 0:02:55]}  Qc7 {[%clk 0:02:17]} 15. Bd3 {[%clk 0:02:41]}  Rfd8 {[%clk 0:02:14]} 16. Rac1 {[%clk 0:02:39]}  Rac8 {[%clk 0:02:10]} 17. h4 {[%clk 0:02:31]}  Rd5 {[%clk 0:02:09]} 18. Be4 {[%clk 0:02:20]}  Rxd1+ {[%clk 0:02:08]} 19. Rxd1 {[%clk 0:02:21]}  Rd8 {[%clk 0:02:09]} 20. Rc1 {[%clk 0:02:12]}  Nb4 {[%clk 0:01:59]} 21. Bd2 {[%clk 0:01:54]}  Qb8 {[%clk 0:01:50]} 22. Bxb4 {[%clk 0:01:48]}  Bxb4 {[%clk 0:01:47]} 23. Ng5 {[%clk 0:01:43]}  h6 {[%clk 0:01:37]} 24. Nxf7 {[%clk 0:01:34]}  Kxf7 {[%clk 0:01:38]} 25. Qf3+ {[%clk 0:01:33]}  Kg8 {[%clk 0:01:38]} 26. Bxb7 {[%clk 0:01:33]}  Qxe5 {[%clk 0:01:39]} 27. Rc2 {[%clk 0:01:11]}  Bc5 {[%clk 0:01:37]} 28. Ba6 {[%clk 0:00:22]}  Rf8 {[%clk 0:01:30]} 29. Qd1 {[%clk 0:00:22]}  Qg3 {[%clk 0:01:23]} 30. Qe1 {[%clk 0:00:22]}  Qxh4 {[%clk 0:01:21]} 31. Bd3 {[%clk 0:00:09]}  e5 {[%clk 0:01:20]} 32. a3 {[%clk 0:00:05]}  Bd4 {[%clk 0:01:19]} 33. Be4 {[%clk 0:00:04]}  Rxf2 {[%clk 0:01:13]} 34. Rxf2 {[%clk 0:00:02]}  Bxf2+ {[%clk 0:01:14]} 35. Qxf2 {[%clk 0:00:03]}  Qxe4 {[%clk 0:01:14]} 36. Qg3 {[%clk 0:00:03]}  Qd4+ {[%clk 0:01:13]} 37. Kh1 {[%clk 0:00:03]}  Qxb2 {[%clk 0:01:10]} 38. Qf3 {[%clk 0:00:04]}  Qc1+ {[%clk 0:01:10]} 39. Kh2 {[%clk 0:00:04]}  Qf4+ {[%clk 0:01:10]} 40. Qxf4 {[%clk 0:00:04]}  exf4 {[%clk 0:01:11]} 0-1


[Site "https://www.chess.com"]

[Event "Titled Tuesday Blitz April 26 Late 2022"]
[White "Yurasova, Daria"]
[Black "Lopez Del Alamo, Antonio"]
[WhiteFideId "34146919"]
[BlackFideId "2227339"]
[WhiteElo "2064"]
[BlackElo "2082"]
[Result "1/2-1/2"]
[Round "06"]
[TimeControl "180+1"]
[Date "2022.04.26"]
[WhiteClock "0:00:24"]
[BlackClock "0:00:14"]

1. e4 {[%clk 0:03:00]}  c5 {[%clk 0:02:59]} 2. Nf3 {[%clk 0:03:00]}  e6 {[%clk 0:02:57]} 3. d4 {[%clk 0:03:01]}  cxd4 {[%clk 0:02:57]} 4. Nxd4 {[%clk 0:03:02]}  Nf6 {[%clk 0:02:56]} 5. Nc3 {[%clk 0:03:02]}  Nc6 {[%clk 0:02:57]} 6. Be3 {[%clk 0:02:58]}  Bb4 {[%clk 0:02:56]} 7. Bd3 {[%clk 0:02:55]}  d5 {[%clk 0:02:55]} 8. exd5 {[%clk 0:02:48]}  Nxd5 {[%clk 0:02:53]} 9. Nxc6 {[%clk 0:02:42]}  bxc6 {[%clk 0:02:42]} 10. O-O {[%clk 0:02:42]}  Nxe3 {[%clk 0:02:36]} 11. fxe3 {[%clk 0:02:43]}  O-O {[%clk 0:02:35]} 12. Ne4 {[%clk 0:02:27]}  Be7 {[%clk 0:02:33]} 13. Qf3 {[%clk 0:02:26]}  f5 {[%clk 0:02:23]} 14. Ng3 {[%clk 0:02:23]}  Qb6 {[%clk 0:02:23]} 15. Bc4 {[%clk 0:02:09]}  Kh8 {[%clk 0:02:19]} 16. Bb3 {[%clk 0:02:08]}  g6 {[%clk 0:02:02]} 17. Rad1 {[%clk 0:02:00]}  e5 {[%clk 0:01:56]} 18. Kh1 {[%clk 0:01:54]}  e4 {[%clk 0:01:51]} 19. Qe2 {[%clk 0:01:53]}  Bf6 {[%clk 0:01:46]} 20. Qc4 {[%clk 0:01:51]}  Ba6 {[%clk 0:01:44]} 21. Qe6 {[%clk 0:01:49]}  Bxf1 {[%clk 0:01:42]} 22. Rxf1 {[%clk 0:01:50]}  c5 {[%clk 0:01:42]} 23. Qc4 {[%clk 0:01:49]}  Bxb2 {[%clk 0:01:38]} 24. c3 {[%clk 0:01:42]}  Qa5 {[%clk 0:01:36]} 25. Ne2 {[%clk 0:01:41]}  Rad8 {[%clk 0:01:32]} 26. Qe6 {[%clk 0:01:20]}  Bxc3 {[%clk 0:01:28]} 27. Nf4 {[%clk 0:01:07]}  Qb6 {[%clk 0:01:07]} 28. Qc4 {[%clk 0:01:05]}  Bg7 {[%clk 0:01:05]} 29. Ne6 {[%clk 0:01:04]}  Rde8 {[%clk 0:01:05]} 30. Nxf8 {[%clk 0:01:04]}  Rxf8 {[%clk 0:01:04]} 31. Rd1 {[%clk 0:01:04]}  Qc7 {[%clk 0:00:46]} 32. Qe6 {[%clk 0:00:56]}  f4 {[%clk 0:00:40]} 33. Qxe4 {[%clk 0:00:45]}  fxe3 {[%clk 0:00:37]} 34. Qxe3 {[%clk 0:00:46]}  Bd4 {[%clk 0:00:34]} 35. Qg3 {[%clk 0:00:37]}  Qxg3 {[%clk 0:00:30]} 36. hxg3 {[%clk 0:00:38]}  Rf2 {[%clk 0:00:23]} 37. Re1 {[%clk 0:00:34]}  Kg7 {[%clk 0:00:23]} 38. Re7+ {[%clk 0:00:34]}  Kh6 {[%clk 0:00:22]} 39. Bg8 {[%clk 0:00:28]}  Kg5 {[%clk 0:00:22]} 40. Bxh7 {[%clk 0:00:24]}  Rxa2 {[%clk 0:00:21]} 41. Re6 {[%clk 0:00:21]}  Bf6 {[%clk 0:00:16]} 42. Rc6 {[%clk 0:00:19]}  Rc2 {[%clk 0:00:14]} 43. Ra6 {[%clk 0:00:20]}  c4 {[%clk 0:00:12]} 44. Rxa7 {[%clk 0:00:17]}  c3 {[%clk 0:00:12]} 45. Rc7 {[%clk 0:00:17]}  Rc1+ {[%clk 0:00:12]} 46. Kh2 {[%clk 0:00:17]}  c2 {[%clk 0:00:12]} 47. Bg8 {[%clk 0:00:17]}  Bb2 {[%clk 0:00:08]} 48. Bb3 {[%clk 0:00:17]}  Bf6 {[%clk 0:00:07]} 49. Rxc2 {[%clk 0:00:16]}  Rxc2 {[%clk 0:00:07]} 50. Bxc2 {[%clk 0:00:17]}  Kh6 {[%clk 0:00:08]} 51. Bd1 {[%clk 0:00:17]}  Bg5 {[%clk 0:00:08]} 52. Bf3 {[%clk 0:00:18]}  Bf6 {[%clk 0:00:09]} 53. g4 {[%clk 0:00:19]}  Bg5 {[%clk 0:00:10]} 54. Kg3 {[%clk 0:00:20]}  Bf6 {[%clk 0:00:10]} 55. Kf2 {[%clk 0:00:21]}  Bg5 {[%clk 0:00:11]} 56. g3 {[%clk 0:00:19]}  Bf6 {[%clk 0:00:12]} 57. Kg2 {[%clk 0:00:20]}  Bg5 {[%clk 0:00:12]} 58. Be2 {[%clk 0:00:21]}  Bf6 {[%clk 0:00:13]} 59. Bf3 {[%clk 0:00:22]}  Bg5 {[%clk 0:00:14]} 60. Be2 {[%clk 0:00:23]}  Bf6 {[%clk 0:00:14]} 61. Bf3 {[%clk 0:00:24]} 1/2-1/2


[Site "https://www.chess.com"]

[Event "Titled Tuesday Blitz April 26 Late 2022"]
[White "Zhigalko, Sergei"]
[Black "Babazada, Khazar"]
[WhiteFideId "13502956"]
[BlackFideId "13413554"]
[WhiteElo "2662"]
[BlackElo "2406"]
[Result "0-1"]
[Round "06"]
[TimeControl "180+1"]
[Date "2022.04.26"]
[WhiteClock "0:00:01"]
[BlackClock "0:00:03"]

1. e4 {[%clk 0:03:00]}  c6 {[%clk 0:02:58]} 2. d4 {[%clk 0:03:00]}  d5 {[%clk 0:02:58]} 3. e5 {[%clk 0:03:00]}  c5 {[%clk 0:02:57]} 4. Nf3 {[%clk 0:03:00]}  Nc6 {[%clk 0:02:56]} 5. dxc5 {[%clk 0:03:01]}  Bg4 {[%clk 0:02:52]} 6. c3 {[%clk 0:03:01]}  e6 {[%clk 0:02:52]} 7. Be3 {[%clk 0:03:01]}  Nge7 {[%clk 0:02:50]} 8. Bb5 {[%clk 0:03:01]}  a6 {[%clk 0:02:43]} 9. Ba4 {[%clk 0:02:58]}  Qc7 {[%clk 0:02:39]} 10. Nbd2 {[%clk 0:02:52]}  Nf5 {[%clk 0:02:32]} 11. Bd4 {[%clk 0:02:50]}  O-O-O {[%clk 0:02:12]} 12. Bxc6 {[%clk 0:02:48]}  Qxc6 {[%clk 0:02:13]} 13. b4 {[%clk 0:02:48]}  Be7 {[%clk 0:01:54]} 14. a4 {[%clk 0:02:40]}  g5 {[%clk 0:01:45]} 15. h3 {[%clk 0:02:24]}  Bxf3 {[%clk 0:01:43]} 16. Qxf3 {[%clk 0:02:15]}  h5 {[%clk 0:01:35]} 17. Qd3 {[%clk 0:02:05]}  Qc7 {[%clk 0:01:28]} 18. Nb3 {[%clk 0:02:01]}  g4 {[%clk 0:01:17]} 19. b5 {[%clk 0:01:58]}  g3 {[%clk 0:01:08]} 20. f4 {[%clk 0:01:49]}  Kd7 {[%clk 0:01:00]} 21. O-O {[%clk 0:01:38]}  Rc8 {[%clk 0:00:59]} 22. Kh1 {[%clk 0:01:29]}  Ke8 {[%clk 0:00:52]} 23. Bg1 {[%clk 0:01:28]}  Kf8 {[%clk 0:00:36]} 24. c4 {[%clk 0:01:13]}  dxc4 {[%clk 0:00:30]} 25. Qxc4 {[%clk 0:01:12]}  Kg7 {[%clk 0:00:31]} 26. Qe4 {[%clk 0:00:57]}  Rhd8 {[%clk 0:00:23]} 27. Rfd1 {[%clk 0:00:56]}  axb5 {[%clk 0:00:20]} 28. axb5 {[%clk 0:00:56]}  Rxd1 {[%clk 0:00:19]} 29. Rxd1 {[%clk 0:00:56]}  Rd8 {[%clk 0:00:20]} 30. b6 {[%clk 0:00:30]}  Qc8 {[%clk 0:00:19]} 31. Rxd8 {[%clk 0:00:30]}  Qxd8 {[%clk 0:00:16]} 32. Qxb7 {[%clk 0:00:18]}  Nh4 {[%clk 0:00:16]} 33. Nd4 {[%clk 0:00:07]}  Kh6 {[%clk 0:00:05]} 34. Qe4 {[%clk 0:00:02]}  Bxc5 {[%clk 0:00:05]} 35. Nxe6 {[%clk 0:00:02]}  fxe6 {[%clk 0:00:03]} 36. Bxc5 {[%clk 0:00:02]}  Qd1+ {[%clk 0:00:03]} 37. Bg1 {[%clk 0:00:03]}  Nf5 {[%clk 0:00:03]} 38. b7 {[%clk 0:00:02]}  Qb3 {[%clk 0:00:04]} 39. Qc6 {[%clk 0:00:02]}  Nh4 {[%clk 0:00:03]} 40. Qe4 {[%clk 0:00:01]}  Nf5 {[%clk 0:00:03]} 41. Qf3 {[%clk 0:00:01]}  Qb5 {[%clk 0:00:03]} 42. Qe4 {[%clk 0:00:01]}  Kg6 {[%clk 0:00:03]} 43. Qf3 {[%clk 0:00:01]}  Kh6 {[%clk 0:00:03]} 44. Qe4 {[%clk 0:00:01]}  Nh4 {[%clk 0:00:04]} 45. Qd4 {[%clk 0:00:01]}  Qc6 {[%clk 0:00:04]} 46. Qd2 {[%clk 0:00:02]}  Qxb7 {[%clk 0:00:04]} 47. f5+ {[%clk 0:00:02]}  Kh7 {[%clk 0:00:05]} 48. fxe6 {[%clk 0:00:03]}  Qe4 {[%clk 0:00:05]} 49. Qb2 {[%clk 0:00:02]}  Qc6 {[%clk 0:00:05]} 50. Qd2 {[%clk 0:00:02]}  Qxe6 {[%clk 0:00:05]} 51. Qd3+ {[%clk 0:00:03]}  Ng6 {[%clk 0:00:05]} 52. Be3 {[%clk 0:00:02]}  Qxe5 {[%clk 0:00:05]} 53. Bg1 {[%clk 0:00:02]}  h4 {[%clk 0:00:04]} 54. Qd7+ {[%clk 0:00:03]}  Kh6 {[%clk 0:00:04]} 55. Qd2+ {[%clk 0:00:03]}  Kh7 {[%clk 0:00:04]} 56. Qd7+ {[%clk 0:00:03]}  Qe7 {[%clk 0:00:04]} 57. Qd3 {[%clk 0:00:03]}  Qf7 {[%clk 0:00:04]} 58. Qe4 {[%clk 0:00:03]}  Qf6 {[%clk 0:00:04]} 59. Bd4 {[%clk 0:00:03]}  Qf7 {[%clk 0:00:04]} 60. Bg1 {[%clk 0:00:02]}  Qf1 {[%clk 0:00:04]} 61. Qg4 {[%clk 0:00:02]}  Qf6 {[%clk 0:00:04]} 62. Qh5+ {[%clk 0:00:03]}  Kg7 {[%clk 0:00:04]} 63. Qd5 {[%clk 0:00:03]}  Qf7 {[%clk 0:00:04]} 64. Bd4+ {[%clk 0:00:03]}  Kg8 {[%clk 0:00:04]} 65. Qh5 {[%clk 0:00:03]}  Qf1+ {[%clk 0:00:05]} 66. Bg1 {[%clk 0:00:03]}  Qf6 {[%clk 0:00:05]} 67. Qg4 {[%clk 0:00:03]}  Kh7 {[%clk 0:00:05]} 68. Qh5+ {[%clk 0:00:04]}  Kg8 {[%clk 0:00:05]} 69. Qd5+ {[%clk 0:00:04]}  Qf7 {[%clk 0:00:05]} 70. Qd3 {[%clk 0:00:04]}  Qe6 {[%clk 0:00:05]} 71. Qf3 {[%clk 0:00:04]}  Kh7 {[%clk 0:00:05]} 72. Qh5+ {[%clk 0:00:04]}  Kg8 {[%clk 0:00:05]} 73. Qf3 {[%clk 0:00:03]}  Qf7 {[%clk 0:00:05]} 74. Qg4 {[%clk 0:00:03]}  Qf6 {[%clk 0:00:05]} 75. Bd4 {[%clk 0:00:03]}  Qf1+ {[%clk 0:00:05]} 76. Bg1 {[%clk 0:00:03]}  Kf7 {[%clk 0:00:06]} 77. Qd4 {[%clk 0:00:02]}  Qf5 {[%clk 0:00:05]} 78. Qc4+ {[%clk 0:00:02]}  Qe6 {[%clk 0:00:05]} 79. Qd4 {[%clk 0:00:02]}  Qe5 {[%clk 0:00:03]} 80. Qg4 {[%clk 0:00:01]}  Qf4 {[%clk 0:00:03]} 81. Qd7+ {[%clk 0:00:01]}  Kg8 {[%clk 0:00:03]} 0-1


[Site "https://www.chess.com"]